Cogmind - Beta 9 @@@ ROGUE MODE // 2019.10.27 @ 04:45:25 Player: Trione Result: Destroyed by H-77 Assassin with Coil Gun Performance ------------- Evolutions (6) 3000 Regions Visited (21) 4200 Robots Destroyed (375) 1875 Value Destroyed (15229) 15229 Prototype IDs (46) 920 Alien Tech Used (0) 0 Bonus (5991) 5991 TOTAL SCORE: 31215 Bonus ------- High Alert Combat Kills 1336 Follower Combat Kills 590 Entered Garrisons 1200 Used RIF Installer 3000 Friendly Fire -135 Cogmind --------- Core Integrity 0/1150 Matter 169/300 Energy 85/1160 System Corruption 13% Temperature Cool (0) Location -4/Factory Parts ------- Power (1) Light Fission Core Propulsion (3) Utility (13) Large Storage Unit High-capacity Storage Unit High-capacity Storage Unit High-capacity Storage Unit Energy Well Energy Well Advanced Targeting Computer Relay Coupler [NC] (7) Relay Coupler [Grunt] (41) Relay Coupler [Hunter] (4) Weapon (2) Heavy Proton Missile Launcher Inventory (34) Coolant Injector Improved Coolant Injector Matter Compressor (250) Gravity Neutralizing Apparatus Gravity Neutralizing Apparatus Launcher Guidance Computer Improved Armor Integrity Analyzer Launcher Loader Quantum Capacitor Advanced Transmission Jammer Improved Propulsion Shielding Improved Force Field Relay Coupler [NC] (41) Improved System Restoration Module Long-range Tractor Beam Improved EM Pulse Cannon Proton Cannon Coil Gun Railgun Improved KE Penetrator AWS/Gauss Improved Proton Missile Launcher Improved Remote Datajack Power Maul Gravity Flail Gravity Flail Gravity Flail Peak State ------------ Power Micro Fission Core Propulsion Improved Heavy Treads Combat Linear Gravjet Utility Coolant Injector Large Storage Unit Large Storage Unit High-capacity Storage Unit High-capacity Storage Unit High-capacity Storage Unit Damper Plating Relay Coupler [NC] Relay Coupler [Grunt] Relay Coupler [Sentry] Relay Coupler [Hunter] Weapon Advanced Plasma Cannon Improved Remote Datajack Inventory Armored Wheel Cooled Aerolev Unit Combat Gravmag System Improved Antigrav System Combat Linear Gravjet Improved Coolant Injector Energy Well Energy Well Matter Compressor Advanced Weight Redist. System Advanced Weight Redist. System Advanced Weight Redist. System Gravity Neutralizing Apparatus Gravity Neutralizing Apparatus Inertial Stasis Machine Launcher Guidance Computer Improved Armor Integrity Analyzer Launcher Loader Advanced Transmission Jammer Improved Propulsion Shielding Improved Propulsion Shielding Improved Medium Armor Plating Relay Coupler [NC] Relay Coupler [Grunt] Improved EM Pulse Cannon Proton Cannon Long-range Proton Cannon Plasma Cannon Coil Gun AWS/Gauss Gauss Cannon Improved Proton Missile Launcher Improved Proton Missile Launcher Heavy Rocket Launcher Powered Hammer Power Maul [Rating: 99] Favorites ----------- Power Heavy Deuterium Engine Engine Heavy Deuterium Engine Power Core Micro Fission Core Propulsion Light Treads Treads Light Treads Wheel Armored Wheel Hover Unit Cooled Aerolev Unit Utility Large Storage Unit Device Advanced Weight Redist. System Storage Large Storage Unit Processor Advanced Targeting Computer Hackware Relay Coupler [NC] Protection Improved Light Armor Plating Weapon Katana Energy Gun Particle Gun Energy Cannon Compact Ion Cannon Ballistic Gun Coil Gun Ballistic Cannon Gauss Cannon Launcher Improved Proton Missile Launcher Special Weapon Improved Remote Datajack Impact Weapon Power Maul Slashing Weapon Katana Special Melee Weapon Datajack Build | -11 -10 -10 -9 -9 -9 -8 -8 -8 -8 -8 -7 -7 -7 -7 -6 -6 -6 -6 -5 -5 -4 ------- Run | Scr Mat Min Mat Min Exi Min Mat Gar Mat Gar Fac Gar Fac Gar Fac Was Fac Gar Fac Gar Fac Slots Evolved 12 | . . . 2 . . . 2 . . . 2 . . . 2 . . . 2 . 2 Power . | . . . . . . . . . . . . . . . . . . . . . . Propulsion 1 | . . . . . . . . . . . . . . . . . . . . . 1 Utility 11 | . . . 2 . . . 2 . . . 2 . . . 2 . . . 2 . 1 Weapon . | . . . . . . . . . . . . . . . . . . . . . . Parts Attached 503 | 6 15 . 21 . 5 . 38 18 10 2 21 34 14 9 84 16 . 12 66 50 82 Power 21 | 1 1 . 2 . . . . 1 . . 2 2 2 . 5 . . . 1 1 3 Engine 14 | 1 1 . 2 . . . . . . . 1 2 2 . 5 . . . . . . Core 7 | . . . . . . . . 1 . . 1 . . . . . . . 1 1 3 Reactor . | . . . . . . . . . . . . . . . . . . . . . . Propulsion 72 | 2 3 . 6 . . . 4 2 . . 3 5 3 . 14 1 . 1 15 1 12 Treads 25 | . 3 . 6 . . . 4 2 . . . . . . 5 . . . . . 5 Leg . | . . . . . . . . . . . . . . . . . . . . . . Wheel 14 | 2 . . . . . . . . . . 3 5 3 . 1 . . . . . . Hover 33 | . . . . . . . . . . . . . . . 8 1 . 1 15 1 7 Flight . | . . . . . . . . . . . . . . . . . . . . . . Utility 173 | 1 4 . 3 . 2 . 8 3 5 . 7 9 3 3 39 6 . 2 30 30 18 Device 57 | . . . . . . . . . . . . 2 1 1 16 3 . 2 14 14 4 Storage 35 | 1 4 . 1 . 2 . 3 . . . . 1 . . 8 . . . 7 4 4 Processor 12 | . . . . . . . . . 1 . . 1 1 1 3 . . . 1 . 4 Hackware 17 | . . . . . . . . . 1 . 1 2 . . 2 1 . . 3 6 1 Protection 52 | . . . 2 . . . 5 3 3 . 6 3 1 1 10 2 . . 5 6 5 Artifact . | . . . . . . . . . . . . . . . . . . . . . . Weapon 237 | 2 7 . 10 . 3 . 26 12 5 2 9 18 6 6 26 9 . 9 20 18 49 Energy Gun 24 | 2 6 . 3 . 1 . 5 3 1 . 1 2 . . . . . . . . . Energy Cannon 43 | . . . 2 . . . 1 . . . . 2 . 2 7 2 . 4 4 5 14 Ballistic Gun 38 | . . . 1 . . . 2 5 2 . 3 4 3 . 2 1 . . 2 1 12 Ballistic Cannon 12 | . . . . . . . 2 . . . 1 3 . . 1 2 . 1 1 . 1 Launcher 52 | . . . 1 . . . 9 2 . 1 . 6 1 4 6 . . 2 2 8 10 Special Weapon 18 | . . . . . . . . . . . . . . . 5 4 . . 2 . 7 Impact Weapon 16 | . . . . . . . 1 . . . . . . . . . . . 6 4 5 Slashing Weapon 32 | . 1 . 3 . 2 . 6 2 1 1 3 1 2 . 5 . . 2 3 . . Piercing Weapon . | . . . . . . . . . . . . . . . . . . . . . . Special Melee Weapon 2 | . . . . . . . . . 1 . 1 . . . . . . . . . . Unidentified Prototypes 18 | . . . 3 . . . . . 1 . 1 . 2 . 3 1 . . 2 . 5 Parts Lost 85 | . 4 . 6 . . . 7 5 . . 8 9 4 2 12 . . 1 4 2 21 Power 11 | . 1 . . . . . 1 . . . 2 2 1 . 2 . . . . . 2 Propulsion 21 | . 1 . 3 . . . 2 2 . . 2 1 2 . 3 . . 1 1 . 3 Utility 28 | . . . . . . . 2 2 . . 4 3 1 1 6 . . . 1 1 7 Weapon 25 | . 2 . 3 . . . 2 1 . . . 3 . 1 1 . . . 2 1 9 Highest Loss Streak 6 | . 3 . 3 . . . 2 3 . . 3 5 2 1 4 . . 1 1 1 6 Average Slot Usage (%) 94 | . 96 100 93 100 99 100 98 98 100 100 98 95 97 87 94 90 86 85 92 86 88 Engine 5 | . 14 14 11 11 11 11 8 . . . 4 6 6 7 5 6 6 6 2 . . Core 2 | . . . . . . . . 7 9 9 2 . . . . . . . 2 5 4 Treads 9 | . 25 28 21 22 22 22 17 17 18 18 2 . . . 2 . . . . . 5 Wheel 2 | . 2 . . . . . . . . . 12 15 12 7 2 . . . . . . Hover 3 | . . . . . . . . . . . . . . . 5 13 13 13 10 11 4 Device 3 | . . . . . . . . . . . . 3 7 6 5 2 . 2 9 9 4 Storage 30 | . 26 28 31 33 35 44 36 36 36 36 30 30 30 30 31 26 26 26 25 23 27 Processor 5 | . . . . . . . . . 1 . . 4 7 7 15 15 13 13 5 5 8 Hackware 5 | . . . . . . . . . 1 . 6 7 7 7 4 6 6 3 12 13 16 Protection 8 | . . . 7 11 8 . 17 17 15 18 22 10 6 5 5 5 6 6 6 3 5 Energy Gun 2 | . 26 28 6 . . . 2 . . . . 1 . . . . . . . . . Energy Cannon 2 | . . . 2 . . . . 3 . . . 3 . 10 5 6 . 7 1 2 2 Ballistic Gun 2 | . . . . . . . 1 4 15 11 7 3 8 1 . 2 6 . . . 2 Slashing Weapon 5 | . . . 12 22 21 22 11 10 . 3 5 . 4 . 4 . . 2 3 . . Naked Turns . | . . . . . . . . . . . . . . . . . . . . . . Heaviest Build 179 | 10 42 42 66 63 76 76 101 102 106 106 114 122 122 125 147 177 176 177 179 170 169 Greatest Support 105 | 20 40 40 40 40 40 40 40 40 40 40 40 24 28 28 62 46 44 44 84 72 105 Greatest Overweight (x) 47 | . 1 1 3 1 1 1 4 2 2 2 8 5 9 4 5 4 3 4 3 4 47 Average Overweight (x) 2 | . . 1 1 1 1 1 2 2 2 2 3 4 4 3 2 2 3 3 1 1 1 Largest Inventory Capacity 40 | 6 16 16 22 22 28 28 30 30 30 30 30 32 32 32 34 34 34 34 34 32 40 Average Capacity 30 | 5 9 16 21 22 23 28 28 30 30 30 30 30 32 32 32 34 34 34 32 32 39 Most Carried 40 | 6 11 11 22 22 24 26 30 30 30 30 30 32 32 31 34 34 34 34 34 32 40 Average Carried 28 | 4 8 11 19 22 22 25 27 29 29 30 29 29 31 27 31 31 34 32 32 30 38 Final Capacity 34 | . . . . . . . . . . . . . . . . . . . . . 34 Final Carried 30 | . . . . . . . . . . . . . . . . . . . . . 30 Class Distribution -------------------- 72% | Hauler-Mutant 15% | Bothacker-Mutant 7% | Mutant Dominant Class ---------------- Mutant | -10/Materials Mutant | -10/Mines Hauler-Mutant | -9/Materials Hauler-Mutant | -9/Mines Commander-Mutant | -9/Exiles Hauler-Mutant | -8/Mines Hauler-Mutant | -8/Materials Bothacker-Mutant | -8/Garrison Hauler-Mutant | -8/Materials Hauler-Mutant | -8/Garrison Hauler-Mutant | -7/Factory Hauler-Mutant | -7/Garrison Hauler-Mutant | -7/Factory Hauler-Mutant | -7/Garrison Hauler-Mutant | -6/Factory Hauler-Mutant | -6/Waste Hauler-Mutant | -6/Factory Hauler-Mutant | -6/Garrison Hauler-Mutant | -5/Factory Hauler-Mutant | -5/Garrison Bothacker-Mutant | -4/Factory Resources | -11 -10 -10 -9 -9 -9 -8 -8 -8 -8 -8 -7 -7 -7 -7 -6 -6 -6 -6 -5 -5 -4 ----------- Run | Scr Mat Min Mat Min Exi Min Mat Gar Mat Gar Fac Gar Fac Gar Fac Was Fac Gar Fac Gar Fac Matter Collected 11091 | 260 135 . 285 . 40 10 833 456 597 68 608 662 217 128 1924 468 . 180 1137 1233 1850 Remotely . | . . . . . . . . . . . . . . . . . . . . . . Salvage Created 17430 | 93 730 171 1535 . 196 . 1054 930 1111 155 1086 1324 478 371 1921 1187 . 180 922 1402 2584 Parts 814 | . 39 11 75 . 11 . 85 31 82 25 61 47 18 22 82 18 . 5 47 57 98 Haulers Intercepted 15 | . 2 . 3 . . . . . 4 . . . . . 3 . . . 2 . 1 Recyclers Shooed 14 | . . 1 . . . . 4 . 2 . . . . . 2 . . . . . 5 Parts Field Recycled . | . . . . . . . . . . . . . . . . . . . . . . Retrieved Matter . | . . . . . . . . . . . . . . . . . . . . . . Parts Self-Destructed . | . . . . . . . . . . . . . . . . . . . . . . Prevented . | . . . . . . . . . . . . . . . . . . . . . . Kills | -11 -10 -10 -9 -9 -9 -8 -8 -8 -8 -8 -7 -7 -7 -7 -6 -6 -6 -6 -5 -5 -4 ------- Run | Scr Mat Min Mat Min Exi Min Mat Gar Mat Gar Fac Gar Fac Gar Fac Was Fac Gar Fac Gar Fac Combat Hostiles Destroyed 282 | . 11 3 24 . . . 34 18 9 15 14 19 5 16 34 4 . 6 17 23 30 Melee 40 | . . . 8 . . . 7 9 . . 3 . 2 . 3 . . . 7 1 . Guns 72 | . 11 3 5 . . . 6 3 9 1 11 4 3 . 4 2 . . 1 . 9 Cannons 35 | . . . 7 . . . 3 1 . . . 2 . 2 8 2 . 3 2 . 5 AOE 118 | . . . 4 . . . 18 5 . 14 . 11 . 14 19 . . 3 6 15 9 Classes Destroyed 17 | 1 5 . 2 . . . 2 1 . . 2 1 . 1 . 1 . . 1 . . Worker 15 | . 1 . . . . . 2 . 3 . 3 . . . 3 . . . . . 3 Builder 14 | . . . . . . . 6 . 3 . . . . . 1 . . . . . 4 Tunneler 2 | . . . . . . . . . . . 1 . . . 1 . . . . . . Hauler 15 | . 2 . 3 . . . . . 4 . . . . . 3 . . . 2 . 1 Recycler 27 | 1 3 2 5 . . . 1 . 3 . 2 . 2 . 4 . . . . . 4 Mechanic 1 | . . . . . . . . . . . . . . . . . . . 1 . . Operator 2 | . . . 1 . . . . . 1 . . . . . . . . . . . . Watcher 16 | . 1 . 2 . . . 1 . 2 . 2 . 3 . 2 . . . 1 . 2 Swarmer 77 | . 6 3 3 . . . 11 3 . 12 1 2 . 7 16 . . . 4 4 5 Grunt 96 | . 5 . 12 . . . 16 12 2 2 7 7 3 4 5 . . 5 3 12 1 Brawler 6 | . . . . . . . . 1 1 . . 1 . . 1 . . . . 2 . Duelist 2 | . . . . . . . . . . . . . . 1 . . . . . 1 . Sentry 53 | . . . 9 . . . 6 2 6 1 5 6 1 3 2 . . 1 2 3 6 Hunter 15 | . . . . . . . 1 . 1 . . 2 1 . 3 . . . 1 . 6 Programmer 28 | . . . . . . . . . . . 1 . . 1 7 . . . 7 . 12 Behemoth 2 | . . . . . . . . . . . . 1 . . . . . . . 1 . Compactor 4 | . . . . . . . . . . . . . . . . 4 . . . . . Best Kill Streak 14 | 1 5 3 5 . . . 14 4 4 14 5 8 3 11 9 1 . 3 4 6 9 Combat Bots Only 14 | . 5 3 4 . . . 6 4 2 14 3 8 3 11 8 1 . 3 4 6 9 Max Kills in Single Turn 5 | 1 1 1 2 . . . 4 2 2 4 2 2 1 3 5 1 . 1 3 2 2 Gunslinging . | . . . . . . . . . . . . . . . . . . . . . . Exploded 4 | . . . 2 . . . 3 2 . 4 . 2 . 3 4 . . 1 3 2 1 Melee 1 | . . . 1 . . . 1 1 . . 1 . 1 . 1 . . . 1 1 . Uniques/NPCs Destroyed . | . . . . . . . . . . . . . . . . . . . . . . Combat | -11 -10 -10 -9 -9 -9 -8 -8 -8 -8 -8 -7 -7 -7 -7 -6 -6 -6 -6 -5 -5 -4 -------- Run | Scr Mat Min Mat Min Exi Min Mat Gar Mat Gar Fac Gar Fac Gar Fac Was Fac Gar Fac Gar Fac Damage Taken 22996 | . 470 63 1230 . . . 1919 814 319 174 1777 1493 981 624 3062 . . 387 1902 1191 6590 Core 3370 | . 88 8 181 . . . 190 91 87 15 214 246 95 135 459 . . 37 321 33 1170 Absorbed by Shields 712 | . . . . . . . . 42 . . 199 240 73 82 . . . 67 . 9 . Reduced by Siege Mode 206 | . . . . . . . . . . . . . . . . . . . . . 206 Core Remaining (%) 50 | 100 . 61 . . . 54 . . . 30 . . . 1 . . . 41 . 64 . Volleys Fired 927 | 5 61 11 55 . . . 61 33 66 22 46 62 12 21 91 87 . 23 38 70 163 Largest 2 | 2 2 2 2 . . . 2 2 2 1 2 2 2 2 2 2 . 2 2 1 2 Hottest 180 | 80 105 105 133 . . . 100 124 60 33 60 118 60 160 180 180 . 180 180 98 178 Shots Fired 1367 | 10 109 22 82 . . . 90 40 96 22 85 98 23 30 155 112 1 24 59 70 239 Gun 676 | 10 109 22 45 . . . 41 29 96 3 85 32 23 . 17 44 1 . 16 . 103 Cannon 409 | . . . 33 . . . 17 3 . . . 32 . 16 106 58 . 16 32 5 91 Launcher 232 | . . . 4 . . . 32 8 . 19 . 34 . 14 19 . . 8 4 65 25 Special 50 | . . . . . . . . . . . . . . . 13 10 . . 7 . 20 Kinetic 509 | . . . 12 . . . 38 14 96 3 72 34 23 . 23 49 1 . 30 . 114 Thermal 430 | 5 78 11 63 . . . 13 4 . . . . . 16 100 53 . 16 18 1 52 Explosive 127 | . . . 4 . . . 32 8 . 19 . 13 . 12 19 . . 8 4 4 4 Electromagnetic 251 | 5 31 11 3 . . . 7 14 . . 13 51 . 2 . . . . . 65 49 Robot Hit Streak 40 | 3 12 3 16 . . . 9 20 25 11 9 23 11 7 13 11 . 4 16 18 40 Robot Miss Streak 7 | 1 3 4 2 . . . 7 1 4 1 3 2 2 4 5 5 2 2 3 1 4 Penetration Max 2 | . . . . . . . 1 1 2 . 1 . . . . . . . . . 1 Secondary Targets 4 | . 1 . 1 . . . 1 . . . . . 1 . . . . . . . . Max Gunslinging Chain 1 | . 1 . 1 . . . 1 . . . . . 1 . . . . . . . . Autonomous 37 | . . . . . . . . . . . 10 15 . . 12 . . . . . . Shots Hit Robots 1046 | 6 72 9 84 . 10 . 70 50 56 8 71 66 36 10 118 81 . 10 81 30 178 Core Hits 701 | 2 27 6 48 . 6 1 84 33 30 18 33 55 14 41 94 17 . 14 42 54 82 Critical Hits 37 | . . . 4 . . . . . 6 . 1 1 1 . 3 1 . . 5 . 15 Critical Kills 15 | . . . 3 . . . . . 5 . . . . . 1 . . . 1 . 5 Critical Parts Destroyed 17 | . . . . . . . . . 1 . . 1 1 . 2 . . . 4 . 8 Melee Attacks 379 | . 1 . 37 . 11 2 22 40 11 . 38 . 25 . 67 . . . 84 3 38 Impact 72 | . . . . . . . . . . . . . . . . . . . 31 3 38 Slashing 299 | . 1 . 37 . 11 2 22 40 8 . 33 . 25 . 67 . . . 53 . . Piercing . | . . . . . . . . . . . . . . . . . . . . . . Sneak Attacks 30 | . . . 4 . . . 2 . 4 . 8 . 2 . 6 . . . 3 . 1 Combat Hostiles 2 | . . . . . . . . . . . 2 . . . . . . . . . . Follow-up Attacks 21 | . . . 3 . 1 . 1 3 . . . . 3 . 4 . . . 2 1 3 Damage Inflicted 43222 | 56 976 120 2699 . 1117 8 3735 1729 1708 1312 2057 3678 1274 1299 5973 2396 . 1041 3103 2931 6010 Guns 10638 | 56 976 120 548 . . . 558 491 1542 47 1550 635 407 . 483 1033 . . 173 . 2019 Cannons 6888 | . . . 467 . . . 271 42 . . . 424 . 119 1729 1363 . 164 583 53 1673 Explosions 16967 | . . . 655 . . . 2178 379 . 1265 . 2619 . 1180 2515 . . 877 778 2823 1698 Melee 8721 | . . . 1029 . 1117 . 728 817 166 . 507 . 867 . 1246 . . . 1569 55 620 Ramming 8 | . . . . . . 8 . . . . . . . . . . . . . . . Kinetic 9256 | . . . 154 . . . 550 260 1542 47 1335 722 407 . 584 1156 . . 376 . 2123 Thermal 7177 | 20 679 45 1187 . . . 375 42 . . . 139 . 119 1628 1240 . 164 380 327 832 Explosive 11821 | . . . 304 . . . 1974 379 . 1265 . 1554 . 1133 2499 . . 877 778 518 540 Electromagnetic 6239 | 36 297 75 25 . . . 108 231 . . 215 1263 . 47 16 . . . . 2031 1895 Impact 1070 | . . . . . . . . . . . . . . . . . . . 395 55 620 Slashing 7651 | . . . 1029 . 1117 . 728 817 166 . 507 . 867 . 1246 . . . 1174 . . Piercing . | . . . . . . . . . . . . . . . . . . . . . . Highest Corruption 29 | . 1 1 . . . . 6 6 6 6 . . . . 14 29 29 29 1 1 13 Average Corruption 7 | . 1 1 . . . . 5 6 6 6 . . . . 6 27 29 29 1 1 5 Corruption Purged 2 | . . . . . . . . . . . . . . . . . . . . . 2 Effects 476 | . . 5 . . . . 11 44 53 10 . . . . 129 72 4 58 . 5 85 Message Errors 98 | . . 3 . . . . 3 9 12 2 . . . . 31 7 . 8 . 3 20 Matter Fused 85 | . . . . . . . 4 14 13 1 . . . . 23 5 1 5 . . 19 Heat Flow Errors 39 | . . . . . . . . 2 4 1 . . . . 10 5 . 8 . . 9 Energy Discharges 51 | . . 2 . . . . 1 4 5 2 . . . . 16 4 . 6 . 2 9 Parts Rejected 3 | . . . . . . . . . . . . . . . 2 . . . . . 1 Data Loss (minor) 50 | . . . . . . . 2 4 6 . . . . . 11 7 1 7 . . 12 Data Loss (major) 16 | . . . . . . . . 3 1 . . . . . 7 1 . 3 . . 1 Misfires 16 | . . . . . . . . 2 4 1 . . . . 4 2 1 . . . 2 Alerts 5 | . . . . . . . . . . . . . . . 2 1 . 2 . . . Misdirections 17 | . . . . . . . . . . . . . . . 6 4 1 6 . . . Targeting Errors 76 | . . . . . . . 1 5 8 2 . . . . 14 31 . 5 . . 10 Weapon Failures 20 | . . . . . . . . 1 . 1 . . . . 3 5 . 8 . . 2 Overload Shots . | . . . . . . . . . . . . . . . . . . . . . . Overflow Damage 1872 | . . . 340 . 247 . 139 . 65 83 . 16 10 51 429 . . 19 244 14 215 Projectiles 136 | . . . . . . . 3 . . . . . . . 45 . . . 24 . 64 Explosions 611 | . . . 194 . . . 69 . . 83 . 16 . 51 129 . . 19 10 13 27 Melee 1125 | . . . 146 . 247 . 67 . 65 . . . 10 . 255 . . . 210 1 124 Knockbacks 20 | . . . . . . . 11 . . . . . . . . . . . 4 . 5 Impact 5 | . . . . . . . . . . . . . . . . . . . 4 . 1 Kinetic 13 | . . . . . . . 9 . . . . . . . . . . . . . 4 Secondary 2 | . . . . . . . 2 . . . . . . . . . . . . . . Self-Inflicted Damage 962 | . 37 . 169 . . . 67 20 . . . . . 163 31 . . 63 57 39 316 Shots 41 | . 1 . 3 . . . 4 1 . . . . . 6 2 . . 2 3 3 16 Rammed 1 | . . . . . . 1 . . . . . . . . . . . . . . . Targets Rammed 1 | . . . . . . 1 . . . . . . . . . . . . . . . Kicked . | . . . . . . . . . . . . . . . . . . . . . . Crushed . | . . . . . . . . . . . . . . . . . . . . . . Highest Temperature 574 | 72 256 270 416 . . . 369 182 198 148 253 212 51 196 420 510 2 518 574 266 447 Average Temperature 106 | 42 97 98 166 . . . 77 32 41 28 59 47 26 97 130 191 2 122 143 92 74 Received Heat Transfer 4269 | . 123 . 459 . . . 684 417 126 45 531 342 333 123 153 . . 104 225 289 315 Effects 35 | . 5 1 8 . . . 1 . . . . 1 . . 9 4 . 2 2 . 2 Shutdowns 5 | . . . 1 . . . . . . . . . . . 2 . . . 1 . 1 Energy Bleed 9 | . 5 1 1 . . . . . . . . 1 . . . . . 1 . . . Interference 12 | . . . 3 . . . 1 . . . . . . . 7 1 . . . . . Matter Decay 1 | . . . 1 . . . . . . . . . . . . . . . . . . Short Circuit 3 | . . . 2 . . . . . . . . . . . . 1 . . . . . Damage (minor) 2 | . . . . . . . . . . . . . . . . . . 1 . . 1 Damage (major) 2 | . . . . . . . . . . . . . . . . 2 . . . . . Damage (core) 1 | . . . . . . . . . . . . . . . . . . . 1 . . Siege Activations 8 | . . . . . . . . . . . . . . . . . . . . . 8 Total Turns 342 | . . . . . . . . . . . . . . . . . . . . . 342 Longest Duration 148 | . . . . . . . . . . . . . . . . . . . . . 148 Robots Corrupted 23 | . . . . . . . . 2 . . . 7 . . . . . . . 7 7 Combat Hostiles 15 | . . . . . . . . . . . . 2 . . . . . . . 7 6 Parts Fried 36 | . . . . . . . 2 . . . 2 5 . . . . . . . 18 9 Impact Corruptions 9 | . . . . . . . . . . . . . . . . . . . 3 1 5 Robots Melted . | . . . . . . . . . . . . . . . . . . . . . . Combat Hostiles . | . . . . . . . . . . . . . . . . . . . . . . Parts Melted 17 | . 4 . 2 . . . 1 . . . . . . 1 1 . . 1 1 . 6 Heat Transferred 10917 | 50 1780 111 2089 . . . 520 54 . . . 100 . 200 2183 1665 . 222 518 275 1150 Parts Sabotaged . | . . . . . . . . . . . . . . . . . . . . . . Parts Stolen . | . . . . . . . . . . . . . . . . . . . . . . Parts Stripped . | . . . . . . . . . . . . . . . . . . . . . . Power Chain Reactions 10 | . 1 . 1 . . . . . . . . 2 . . . . . . . 6 . Missiles Intercepted . | . . . . . . . . . . . . . . . . . . . . . . Alert | -11 -10 -10 -9 -9 -9 -8 -8 -8 -8 -8 -7 -7 -7 -7 -6 -6 -6 -6 -5 -5 -4 ------- Run | Scr Mat Min Mat Min Exi Min Mat Gar Mat Gar Fac Gar Fac Gar Fac Was Fac Gar Fac Gar Fac Peak Influence 1131 | 5 236 70 356 138 . 189 747 1131 837 453 237 700 367 454 586 359 251 440 328 971 584 Average Influence 271 | 1 72 23 176 76 . 86 371 747 280 315 93 478 210 342 149 262 251 307 85 632 376 Maximum Alert Level 4 | . 1 . 1 . . . 3 4 3 2 1 3 1 2 2 1 1 2 1 3 2 Low Security (%) 51 | . . . . . . . . . . . . . . . . . . . . . . Level 1 20 | . . . . . . . . . . . . . . . . . . . . . . Level 2 21 | . . . . . . . . . . . . . . . . . . . . . . Level 3 6 | . . . . . . . . . . . . . . . . . . . . . . Level 4 . | . . . . . . . . . . . . . . . . . . . . . . Level 5 . | . . . . . . . . . . . . . . . . . . . . . . High Security . | . . . . . . . . . . . . . . . . . . . . . . Max Security . | . . . . . . . . . . . . . . . . . . . . . . Squads Dispatched 53 | . 1 . 3 . . . 10 . 1 . 4 . 1 . 14 . . . 6 . 13 Investigation 1 | . . . . . . . . . . . . . . . 1 . . . . . . Extermination 23 | . . . . . . . . . . . 2 . 1 . 8 . . . 4 . 8 Reinforcement 19 | . 1 . 3 . . . 3 . 1 . 1 . . . 4 . . . 1 . 5 Assault 2 | . . . . . . . 1 . . . . . . . 1 . . . . . . Garrison 8 | . . . . . . . 6 . . . 1 . . . . . . . 1 . . Intercept . | . . . . . . . . . . . . . . . . . . . . . . Construction Impeded 4 | . . . . . . . 1 . . . . . . . 2 . . . . . 1 Haulers Reinforced 1 | . . . . . . . . . . . . . . . . . . . . . 1 Alert ID Control Effect 1 | . . . . . . . . . . . . . . . . . . . . . 1 Stealth | -11 -10 -10 -9 -9 -9 -8 -8 -8 -8 -8 -7 -7 -7 -7 -6 -6 -6 -6 -5 -5 -4 --------- Run | Scr Mat Min Mat Min Exi Min Mat Gar Mat Gar Fac Gar Fac Gar Fac Was Fac Gar Fac Gar Fac Distress Signals 8 | . . . 1 . . . 5 . 1 . . . . . . . . . 1 . . Communications Jammed . | . . . . . . . . . . . . . . . . . . . . . . Distress Signals . | . . . . . . . . . . . . . . . . . . . . . . Times Spotted 404 | . 20 3 33 . . 4 44 23 19 9 28 21 10 17 54 6 . 7 31 29 46 Peak Tracking Total 7 | . 3 2 4 . . 4 7 5 3 6 6 4 3 7 4 3 . 3 4 4 6 Tactical Retreats 33 | . 1 . . . . 1 6 1 1 2 4 3 1 1 5 . . . 1 5 1 Traps | -11 -10 -10 -9 -9 -9 -8 -8 -8 -8 -8 -7 -7 -7 -7 -6 -6 -6 -6 -5 -5 -4 ------- Run | Scr Mat Min Mat Min Exi Min Mat Gar Mat Gar Fac Gar Fac Gar Fac Was Fac Gar Fac Gar Fac Traps Triggered 44 | . 2 . . . . . 3 7 . 2 1 6 2 6 6 . . . 1 6 2 Indirectly 1 | . . . . . . . . . . . . 1 . . . . . . . . . Trap Hack Attempts . | . . . . . . . . . . . . . . . . . . . . . . Triggered . | . . . . . . . . . . . . . . . . . . . . . . Disarmed . | . . . . . . . . . . . . . . . . . . . . . . Reprogrammed . | . . . . . . . . . . . . . . . . . . . . . . Reused . | . . . . . . . . . . . . . . . . . . . . . . Traps Extracted . | . . . . . . . . . . . . . . . . . . . . . . Installed . | . . . . . . . . . . . . . . . . . . . . . . Triggered 3 | . . . . . . . . . . . . 2 . . . . . . . 1 . Machines | -11 -10 -10 -9 -9 -9 -8 -8 -8 -8 -8 -7 -7 -7 -7 -6 -6 -6 -6 -5 -5 -4 ---------- Run | Scr Mat Min Mat Min Exi Min Mat Gar Mat Gar Fac Gar Fac Gar Fac Was Fac Gar Fac Gar Fac Machines Disabled 49 | . 1 . 8 . . . 4 3 4 . 2 6 . . 4 . . 2 2 7 6 Max in Single Turn 4 | . 1 . 4 . . . 1 1 1 . 1 2 . . 1 . . 1 1 2 3 Garrison Access 2 | . . . . . . . . . . . . . . . 2 . . . . . . Garrison Relay 9 | . . . . . . . . 2 . . . 3 . . . . . 1 . 3 . Machines Sabotaged . | . . . . . . . . . . . . . . . . . . . . . . Garrisons Compromised . | . . . . . . . . . . . . . . . . . . . . . . Overloaded Fab Kills . | . . . . . . . . . . . . . . . . . . . . . . Fab Network Shutdowns . | . . . . . . . . . . . . . . . . . . . . . . Hacking | -11 -10 -10 -9 -9 -9 -8 -8 -8 -8 -8 -7 -7 -7 -7 -6 -6 -6 -6 -5 -5 -4 --------- Run | Scr Mat Min Mat Min Exi Min Mat Gar Mat Gar Fac Gar Fac Gar Fac Was Fac Gar Fac Gar Fac Machines Accessed 70 | . 4 . 4 . 2 . 4 . 7 . 5 . 7 . 22 . 1 . 5 . 9 Terminals 44 | . 4 . 4 . . . 2 . 6 . 3 . 4 . 15 . . . . . 6 Fabricators 2 | . . . . . . . . . . . . . . . 1 . . . 1 . . Repair Stations 4 | . . . . . . . . . . . . . . . 2 . . . 1 . 1 Recycling Units 10 | . . . . . . . 1 . . . 1 . 2 . 3 . . . 1 . 2 Scanalyzers 1 | . . . . . . . . . . . . . . . . . . . 1 . . Garrison Access 7 | . . . . . . . 1 . 1 . 1 . 1 . 1 . 1 . 1 . . Total Hacks 168 | . 14 . 8 . 5 . 8 . 17 . 10 . 19 . 52 . 1 . 19 . 15 Successful 100 | . 8 . 5 . 5 . 5 . 12 . 3 . 12 . 27 . 1 . 15 . 7 Failed 68 | . 6 . 3 . . . 3 . 5 . 7 . 7 . 25 . . . 4 . 8 Catastrophic 14 | . . . . . . . . . 2 . 1 . 3 . 5 . . . . . 3 Database Lockouts . | . . . . . . . . . . . . . . . . . . . . . . Manual 93 | . 14 . 7 . 1 . 5 . 12 . 5 . 15 . 21 . . . 1 . 12 Terminals 113 | . 14 . 8 . . . 5 . 16 . 7 . 16 . 35 . . . . . 12 Fabricators 9 | . . . . . . . . . . . . . . . 3 . . . 6 . . Repair Stations 16 | . . . . . . . . . . . . . . . 9 . . . 6 . 1 Recycling Units 13 | . . . . . . . 2 . . . 2 . 2 . 4 . . . 1 . 2 Scanalyzers 5 | . . . . . . . . . . . . . . . . . . . 5 . . Garrison Access 7 | . . . . . . . 1 . 1 . 1 . 1 . 1 . 1 . 1 . . Terminal Hacks 30 | . 3 . 1 . 5 . . . 6 . . . 4 . 10 . . . . . 1 Record 4 | . . . . . 4 . . . . . . . . . . . . . . . . Part Schematic 2 | . . . . . . . . . 1 . . . . . 1 . . . . . . Prototype ID Bank 1 | . . . . . . . . . . . . . . . 1 . . . . . . Terminal Index 3 | . . . . . . . . . . . . . 1 . 1 . . . . . 1 Garrison Index 1 | . . . . . . . . . . . . . . . 1 . . . . . . Unreport Threat 5 | . 1 . . . . . . . 2 . . . 1 . 1 . . . . . . Locate Traps 1 | . . . . . . . . . . . . . . . 1 . . . . . . Recall Extermination 1 | . . . . . . . . . . . . . . . 1 . . . . . . Hauler Manifests 1 | . . . . . . . . . . . . . . . 1 . . . . . . Zone Layout 10 | . 2 . 1 . . . . . 3 . . . 2 . 2 . . . . . . EX-Prototype ID Bank 1 | . . . . . 1 . . . . . . . . . . . . . . . . Fabricator Hacks 3 | . . . . . . . . . . . . . . . . . . . 3 . . Load Schematic 1 | . . . . . . . . . . . . . . . . . . . 1 . . Build 2 | . . . . . . . . . . . . . . . . . . . 2 . . Repair Station Hacks 15 | . . . . . . . . . . . . . . . 9 . . . 6 . . Scan Component 7 | . . . . . . . . . . . . . . . 4 . . . 3 . . Repair 7 | . . . . . . . . . . . . . . . 4 . . . 3 . . Refit 1 | . . . . . . . . . . . . . . . 1 . . . . . . Recycling Unit Hacks 3 | . . . . . . . 1 . . . . . . . . . . . 1 . 1 Retrieve Components 3 | . . . . . . . 1 . . . . . . . . . . . 1 . 1 Scanalyzer 3 | . . . . . . . . . . . . . . . . . . . 3 . . Insert Component 2 | . . . . . . . . . . . . . . . . . . . 2 . . Analyze 1 | . . . . . . . . . . . . . . . . . . . 1 . . Garrison Access Hacks 7 | . . . . . . . 1 . 1 . 1 . 1 . 1 . 1 . 1 . . Unlock Access 6 | . . . . . . . 1 . 1 . 1 . 1 . . . 1 . 1 . . Seal Access 1 | . . . . . . . . . . . . . . . 1 . . . . . . Unauthorized Hacks 104 | . 10 . 11 . . . 8 . 11 . 6 . 18 . 22 . . . 2 . 16 Terminals 36 | . 5 . 4 . . . 3 . 5 . 2 . 7 . 5 . . . . . 5 Track 18 | . 4 . 2 . . . 2 . 1 . 2 . 3 . 2 . . . . . 2 Assimilate 4 | . . . 1 . . . . . 3 . . . . . . . . . . . . Botnet 11 | . 1 . 1 . . . 1 . . . . . 3 . 3 . . . . . 2 Operators 3 | . . . . . . . . . 1 . . . 1 . . . . . . . 1 Fabricators 3 | . . . . . . . . . . . . . . . 2 . . . 1 . . Report 2 | . . . . . . . . . . . . . . . 1 . . . 1 . . Haulers 1 | . . . . . . . . . . . . . . . 1 . . . . . . Repair Stations . | . . . . . . . . . . . . . . . . . . . . . . Recycling Units . | . . . . . . . . . . . . . . . . . . . . . . Scanalyzers . | . . . . . . . . . . . . . . . . . . . . . . Garrison Access . | . . . . . . . . . . . . . . . . . . . . . . Data Cores Recovered . | . . . . . . . . . . . . . . . . . . . . . . Used . | . . . . . . . . . . . . . . . . . . . . . . Hacking Detections 54 | . 4 . 4 . . . 2 . 5 . 4 . 6 . 18 . . . 3 . 8 Full Trace Events . | . . . . . . . . . . . . . . . . . . . . . . Feedback Events . | . . . . . . . . . . . . . . . . . . . . . . Feedback Blocked . | . . . . . . . . . . . . . . . . . . . . . . Robot Schematics Acquired . | . . . . . . . . . . . . . . . . . . . . . . Robots Built . | . . . . . . . . . . . . . . . . . . . . . . Matter . | . . . . . . . . . . . . . . . . . . . . . . Time . | . . . . . . . . . . . . . . . . . . . . . . Total Robot Build Rating . | . . . . . . . . . . . . . . . . . . . . . . Part Schematics Acquired 3 | . . . . . . . . . 1 . . . . . 1 . . . 1 . . Parts Built 4 | . . . . . . . . . . . . . . . . . . . 4 . . Matter 468 | . . . . . . . . . . . . . . . . . . . 468 . . Time 234 | . . . . . . . . . . . . . . . . . . . 234 . . Total Part Build Rating 28 | . . . . . . . . . . . . . . . . . . . 28 . . Parts Repaired 7 | . . . . . . . . . . . . . . . 4 . . . 3 . . Time 369 | . . . . . . . . . . . . . . . 213 . . . 156 . . Parts Recycled . | . . . . . . . . . . . . . . . . . . . . . . Recycled Matter . | . . . . . . . . . . . . . . . . . . . . . . Retrieved Matter . | . . . . . . . . . . . . . . . . . . . . . . Retrieved Components 13 | . . . . . . . . . . . . . . . . . . . 10 . 3 Parts Scanalyzed 2 | . . . . . . . . . . . . . . . . . . . 2 . . Part Schematics Acquired 1 | . . . . . . . . . . . . . . . . . . . 1 . . Parts Damaged . | . . . . . . . . . . . . . . . . . . . . . . Bothacking | -11 -10 -10 -9 -9 -9 -8 -8 -8 -8 -8 -7 -7 -7 -7 -6 -6 -6 -6 -5 -5 -4 ------------ Run | Scr Mat Min Mat Min Exi Min Mat Gar Mat Gar Fac Gar Fac Gar Fac Was Fac Gar Fac Gar Fac Used RIF Installer 6 | . . . . . . . . 1 . 1 . 1 . 1 . . . 1 . 1 . Coupler Efficiency 2 | . . . . . . . . . . . . . . 1 . . . . . 1 . Robot Detection 1 | . . . . . . . . . . . . 1 . . . . . . . . . Alert ID Control 1 | . . . . . . . . . . . . . . . . . . 1 . . . Structural Interface 1 | . . . . . . . . . . 1 . . . . . . . . . . . Robots Hacked 20 | . . . . . . . . . 1 . 2 . . . 2 6 . . 4 . 5 Non-combat 12 | . . . . . . . . . 1 . 2 . . . 2 . . . 4 . 3 Combat 8 | . . . . . . . . . . . . . . . . 6 . . . . 2 Robot Hacks Applied 36 | . . . . . . . . . 3 . 3 . . . 8 8 . . 5 . 9 parse_system 1 | . . . . . . . . . . . . . . . . . . . . . 1 generate_echo 1 | . . . . . . . . . . . . . . . . . . . . . 1 find_chute 1 | . . . . . . . . . . . 1 . . . . . . . . . . find_fabricator 1 | . . . . . . . . . . . . . . . . . . . . . 1 drop_inventory 5 | . . . . . . . . . . . . . . . 1 . . . 2 . 2 purge_threat 9 | . . . . . . . . . 3 . 1 . . . 2 . . . 1 . 2 locate_traps 2 | . . . . . . . . . . . . . . . 1 . . . 1 . . block_reporting 2 | . . . . . . . . . . . . . . . 1 . . . 1 . . summon_haulers 3 | . . . . . . . . . . . . . . . 3 . . . . . . ignore_targets 8 | . . . . . . . . . . . . . . . . 8 . . . . . overload_power 1 | . . . . . . . . . . . 1 . . . . . . . . . . formatsys_high 2 | . . . . . . . . . . . . . . . . . . . . . 2 Relay Couplers Released 41 | . . . . . . . . 8 . . . 14 . . 3 . . 3 . 13 . Machine Destruction 41 | . . . . . . . . 8 . . . 14 . . 3 . . 3 . 13 . Attached 15 | . . . . . . . . . 1 . 1 2 . . 1 1 . . 2 6 1 Robots Rewired 8 | . . . . . 3 . . 3 . . 1 . . . . . . . . . 1 Allies Hacked 1 | . . . . . . . . . . . . . . . . . . . . . 1 Hacks Repelled . | . . . . . . . . . . . . . . . . . . . . . . Allies | -11 -10 -10 -9 -9 -9 -8 -8 -8 -8 -8 -7 -7 -7 -7 -6 -6 -6 -6 -5 -5 -4 -------- Run | Scr Mat Min Mat Min Exi Min Mat Gar Mat Gar Fac Gar Fac Gar Fac Was Fac Gar Fac Gar Fac Total Allies 13 | . . . . 3 3 . . 3 . . 1 . . . . . . . . . 3 Largest Group 6 | . . . . 3 6 6 5 3 3 . 1 . . . . . . . . . 2 Highest-Rated Group 100 | . . . . 40 77 77 69 63 63 . 37 . . . . . . . . . 100 Highest-Rated Ally 56 | . . . . 16 21 21 21 21 21 . 37 . . . . . . . . . 56 Total Orders . | . . . . . . . . . . . . . . . . . . . . . . Ally Attacks 89 | . . . . . . 24 14 13 27 . . . . . . . . . . . 11 Total Damage 1763 | . . . . . . 270 105 362 554 . . . . . . . . . . . 472 Kills 24 | . . . . . . 7 . 6 9 . . . . . . . . . . . 2 Allies Corrupted . | . . . . . . . . . . . . . . . . . . . . . . Allies Melted . | . . . . . . . . . . . . . . . . . . . . . . Intel | -11 -10 -10 -9 -9 -9 -8 -8 -8 -8 -8 -7 -7 -7 -7 -6 -6 -6 -6 -5 -5 -4 ------- Run | Scr Mat Min Mat Min Exi Min Mat Gar Mat Gar Fac Gar Fac Gar Fac Was Fac Gar Fac Gar Fac Robot Analysis Total . | . . . . . . . . . . . . . . . . . . . . . . Derelict Logs Recovered 4 | . . 2 . 2 . . . . . . . . . . . . . . . . . Drone Launches . | . . . . . . . . . . . . . . . . . . . . . . Drone Recoveries . | . . . . . . . . . . . . . . . . . . . . . . Exploration | -11 -10 -10 -9 -9 -9 -8 -8 -8 -8 -8 -7 -7 -7 -7 -6 -6 -6 -6 -5 -5 -4 ------------- Run | Scr Mat Min Mat Min Exi Min Mat Gar Mat Gar Fac Gar Fac Gar Fac Was Fac Gar Fac Gar Fac Turns Passed 28005 | 73 907 856 1765 718 1080 632 1016 1354 1549 353 1396 1116 821 701 4799 633 53 775 2016 1741 3651 Spaces Moved 12590 | 55 410 453 792 388 565 333 365 467 629 138 771 676 512 422 2204 161 24 245 932 817 1231 Core 7 | 1 . . . . . . . . . . . . . . . . . . . . 6 Treads 5654 | . 371 453 792 388 565 333 365 467 629 138 91 . . . 366 . . . . . 696 Legs . | . . . . . . . . . . . . . . . . . . . . . . Wheels 3268 | 54 39 . . . . . . . . . 680 676 512 422 885 . . . . . . Hover 3661 | . . . . . . . . . . . . . . . 953 161 24 245 932 817 529 Flight . | . . . . . . . . . . . . . . . . . . . . . . Fastest Speed 50 | 50 80 180 160 180 180 180 180 200 210 210 130 120 130 130 130 142 220 220 108 108 131 Average Speed 168 | 79 155 180 180 180 180 180 200 205 210 210 140 130 134 139 162 198 220 257 149 149 178 Slowest Speed 2400 | 80 180 180 220 180 180 180 240 210 210 210 270 140 180 140 266 276 220 301 241 301 2400 Overloaded Moves 1721 | . . . . . . . . . . . . . . . 913 161 24 174 425 24 . Propulsion Burnouts 1 | . . . . . . . . . . . . . . . . . . 1 . . . Robots Hopped . | . . . . . . . . . . . . . . . . . . . . . . Cave-ins Triggered 1 | . . . . . . . . . . . . . . . 1 . . . . . . Exploration Rate (%) 51 | 4 79 88 65 80 91 92 33 51 61 37 21 60 14 71 47 77 1 38 16 80 25 Regions Visited 21 Branch Regions 4 Pre-discovered Areas 3 | . . 2 . . 1 . . . . . . . . . . . . . . . . Known Exits Taken 7 | . . 1 . . . . 1 . 1 . 1 . 1 . . . 1 . 1 . . Unknown Exits Taken 6 | 1 1 . 1 1 1 1 . . . . . . . . . . . . . . . Scrap Searched 4 | . . 2 . 1 . 1 . . . . . . . . . . . . . . . Spaces Dug 162 | . 1 . 8 . . 2 23 2 24 1 17 . 1 9 37 . . . 17 . 20 Terrain Destroyed 1125 | . 4 . 85 . . 2 172 12 77 26 24 87 3 65 176 2 . 93 96 85 116 Melee 89 | . 1 . 2 . . 2 . 2 5 . 17 . 1 . 32 . . . 17 . 10 Projectile 135 | . . . . . . . . 1 72 . 7 2 2 2 21 2 . . 4 . 22 AOE 901 | . 3 . 83 . . . 172 9 . 26 . 85 . 63 123 . . 93 75 85 84 Actions | -11 -10 -10 -9 -9 -9 -8 -8 -8 -8 -8 -7 -7 -7 -7 -6 -6 -6 -6 -5 -5 -4 --------- Run | Scr Mat Min Mat Min Exi Min Mat Gar Mat Gar Fac Gar Fac Gar Fac Was Fac Gar Fac Gar Fac Total 17716 | 71 566 472 1009 409 615 362 528 786 753 180 957 824 599 503 3189 365 24 365 1405 1335 2399 Wait 2569 | . 66 9 65 20 . 25 20 151 12 16 56 14 9 3 686 84 . 48 234 230 821 Move 12568 | 54 409 452 791 387 564 332 364 465 629 136 771 674 512 420 2203 160 24 243 932 815 1231 Hop . | . . . . . . . . . . . . . . . . . . . . . . Pick Up 253 | 6 9 . 29 1 3 2 15 12 11 . 12 11 9 2 32 5 . 18 19 30 27 Fast Attach 88 | 6 3 . 6 . 3 . 1 . 2 . 2 8 1 1 16 1 . 3 8 11 16 Attach 151 | . 3 . 5 . . . 8 6 2 . 9 10 5 5 25 4 . 3 19 24 23 Detach 94 | . . . . . . . 1 . 2 . 3 3 2 6 12 5 . 2 12 27 19 Swap 264 | . 9 . 10 . 2 . 29 12 6 2 10 16 8 3 43 11 . 6 39 15 43 Drop 217 | . 5 . 19 1 6 . 10 7 12 . 6 10 10 . 25 8 . 19 25 33 21 Fire 927 | 5 61 11 55 . . . 61 33 66 22 46 62 12 21 91 87 . 23 38 70 163 Melee 332 | . 1 . 29 . 9 2 19 35 11 . 34 . 21 . 55 . . . 79 2 35 Ram . | . . . . . . . . . . . . . . . . . . . . . . Kick . | . . . . . . . . . . . . . . . . . . . . . . Crush 1 | . . . . . . 1 . . . . . . . . . . . . . . . Escape Stasis 165 | . . . . . . . . 6 . 4 8 16 10 42 1 . . . . 78 . Rewire 87 | . . . . . 28 . . 59 . . . . . . . . . . . . . Trap . | . . . . . . . . . . . . . . . . . . . . . . Miscellaneous . | . . . . . . . . . . . . . . . . . . . . . . Route ------- -11/Scrapyard -10/Materials (discovered 4 exits: *Mat x3 / [*Min]) -10/Mines (discovered 2 exits: *Mat x2) -9/Materials (discovered 6 exits: *Mat x3 / [*Min] / [*Sto x2]) -9/Mines (discovered 3 exits: *Mat x2 / *Exi) -9/Exiles -8/Mines -8/Materials (discovered 2 exits: *Fac / Gar) -8/Garrison -8/Materials (discovered 3 exits: *Fac x2 / Gar) -8/Garrison -7/Factory (discovered 2 exits: [*Low] / Gar) -7/Garrison (discovered 2 exits: *Fac x2) -7/Factory (discovered 2 exits: *Fac / Gar) -7/Garrison (discovered 3 exits: *Fac x3) -6/Factory (discovered 4 exits: *Fac x2 / *Low / [*Ext]) -6/Waste -6/Factory -6/Garrison -5/Factory (discovered 2 exits: *Fac / Gar) -5/Garrison (discovered 3 exits: *Fac x3) -4/Factory (discovered 2 exits: [*Upp x2]) History --------- Turn | Location | Event 13 | -11/Scrapyard | Discovered new exit (range 16) 74 | -11/Scrapyard | Entered Materials 304 | -10/Materials | Build established: Mutant 503 | -10/Materials | Discovered new exit (range 10) 761 | -10/Materials | Lost 3 parts (1p1n1w) 762 | -10/Materials | Discovered new exit (range 14) 906 | -10/Materials | Discovered new exit (range 4) 950 | -10/Materials | Discovered new exit (range 16) 981 | -10/Materials | Entered Mines 982 | -10/Mines | Learned location of Storage (-9) 1244 | -10/Mines | Identified exit to Materials 1305 | -10/Mines | Discovered exit to Materials (range 10) 1542 | -10/Mines | Learned location of Zion (-6) 1837 | -10/Mines | Entered Materials 1837 | -9/Materials | Evolved 2 slots: Utility x2 1973 | -9/Materials | Lost 3 parts (1n2w) 2219 | -9/Materials | Discovered new exit (range 5) 2370 | -9/Materials | Discovered new exit (range 16) 2409 | -9/Materials | Build established: Hauler-Mutant 2639 | -9/Materials | Discovered new exit (range 10) 2861 | -9/Materials | Discovered new exit (range 8) 2909 | -9/Materials | Discovered new exit (range 10) 3231 | -9/Materials | Discovered new exit (range 7) 3602 | -9/Materials | Entered Mines 3763 | -9/Mines | Learned location of 1 exit from Proximity Caves 3792 | -9/Mines | Learned 2 Materials zone layouts 3960 | -9/Mines | Assisted by bots powering up and referring to "LRC-V3" 3976 | -9/Mines | Discovered new exit (range 6) 3988 | -9/Mines | Received a Rocket Launcher from a helpful Derelict 4232 | -9/Mines | Deemed a non-threat by the Exiles lab entrance 4234 | -9/Mines | Discovered new exit (range 5) 4259 | -9/Mines | Discovered new exit (range 8) 4320 | -9/Mines | Entered Exiles 4320 | -9/Exiles | Found Exiles lab destroyed 4320 | -9/Exiles | Accompanied by 3 allies 4647 | -9/Exiles | Opened EX-Vault 4664 | -9/Exiles | Found AWS/Gauss 4867 | -9/Exiles | Build established: Commander-Mutant 5374 | -9/Exiles | Discovered new exit (range 12) 5400 | -9/Exiles | Entered Mines 5400 | -8/Mines | Accompanied by 6 allies 5717 | -8/Mines | Build established: Hauler-Mutant 6008 | -8/Mines | Discovered new exit (range 8) 6032 | -8/Mines | Entered Materials 6032 | -8/Materials | Accompanied by 5 allies 6032 | -8/Materials | Evolved 2 slots: Utility x2 6327 | -8/Materials | Garrison activated, responded to threat 6536 | -8/Materials | Discovered new exit (range 7) 6689 | -8/Materials | Identified exit to Garrison 6768 | -8/Materials | Garrison activated, responded to threat 6832 | -8/Materials | First assault squad dispatched 7048 | -8/Materials | Entered Garrison 7058 | -8/Garrison | Installed Relay Interface Framework 7126 | -8/Garrison | Triggered checkpoint 7226 | -8/Garrison | Garrison Relay disabled 7443 | -8/Garrison | Triggered checkpoint 7507 | -8/Garrison | Triggered checkpoint 7613 | -8/Garrison | Garrison Relay disabled 7665 | -8/Garrison | Lost 3 parts (2n1u) 7804 | -8/Garrison | Triggered checkpoint 7822 | -8/Garrison | Triggered checkpoint 7916 | -8/Garrison | Triggered checkpoint 8004 | -8/Garrison | Core integrity fell below 50% 8009 | -8/Garrison | Build established: Bothacker-Mutant 8305 | -8/Garrison | Triggered checkpoint 8349 | -8/Garrison | Discovered new exit (range 15) 8402 | -8/Garrison | Entered Materials 8402 | -8/Materials | Accompanied by 3 allies 8949 | -8/Materials | Build established: Hauler-Mutant 9138 | -8/Materials | Discovered new exit (range 8) 9724 | -8/Materials | Discovered new exit (range 16) 9951 | -8/Materials | Identified exit to Garrison 9951 | -8/Materials | Entered Garrison 10032 | -8/Garrison | Triggered checkpoint 10058 | -8/Garrison | Triggered checkpoint 10090 | -8/Garrison | Triggered checkpoint 10138 | -8/Garrison | Destroyed 14 combat bots 10249 | -8/Garrison | Discovered new exit (range 14) 10294 | -8/Garrison | Expanded RIF knowledge: Structural Interface 10304 | -8/Garrison | Entered Factory 10304 | -7/Factory | Evolved 2 slots: Utility x2 11469 | -7/Factory | Discovered new exit (range 3) 11517 | -7/Factory | Garrison activated, responded to threat 11674 | -7/Factory | Lost 3 parts (1n2u) 11700 | -7/Factory | Identified exit to Garrison 11700 | -7/Factory | Entered Garrison 11828 | -7/Garrison | Triggered checkpoint 11838 | -7/Garrison | Triggered checkpoint 11888 | -7/Garrison | Destroyed 8 combat bots 12004 | -7/Garrison | Discovered new exit (range 15) 12031 | -7/Garrison | Expanded RIF knowledge: Robot Detection 12102 | -7/Garrison | Triggered checkpoint 12150 | -7/Garrison | Garrison Relay disabled 12236 | -7/Garrison | Spotted B-75 Beast 12286 | -7/Garrison | Lost 3 parts (2u1w) 12287 | -7/Garrison | Destroyed B-75 Beast 12343 | -7/Garrison | Garrison Relay disabled 12531 | -7/Garrison | Discovered new exit (range 15) 12548 | -7/Garrison | Core integrity fell below 50% 12600 | -7/Garrison | Lost 5 parts (1p1n1u2w) 12715 | -7/Garrison | Garrison Relay disabled 12816 | -7/Garrison | Entered Factory 13350 | -7/Factory | Found Prototype Launcher 13350 | -7/Factory | Identified Rocket Array 13548 | -7/Factory | Discovered new exit (range 14) 13637 | -7/Factory | Identified exit to Garrison 13637 | -7/Factory | Entered Garrison 13695 | -7/Garrison | Core integrity fell below 20% 13695 | -7/Garrison | Triggered checkpoint 13703 | -7/Garrison | Triggered checkpoint 13715 | -7/Garrison | Triggered checkpoint 13750 | -7/Garrison | Destroyed 11 combat bots 13812 | -7/Garrison | Discovered new exit (range 9) 13930 | -7/Garrison | Spotted B-75 Beast 14070 | -7/Garrison | Triggered checkpoint 14150 | -7/Garrison | Discovered new exit (range 15) 14320 | -7/Garrison | Discovered new exit (range 5) 14324 | -7/Garrison | Identified exit to Factory 14332 | -7/Garrison | Expanded RIF knowledge: Coupler Efficiency 14338 | -7/Garrison | Entered Factory 14338 | -6/Factory | Evolved 2 slots: Utility x2 15949 | -6/Factory | Crushed by falling debris 16843 | -6/Factory | Discovered new exit (range 16) 17009 | -6/Factory | Lost 4 parts (1p2n1u) 17223 | -6/Factory | Discovered new exit (range 6) 17697 | -6/Factory | Discovered new exit (range 3) 17701 | -6/Factory | Identified exit to Lower Caves 17932 | -6/Factory | Repaired Coolant Injector 18003 | -6/Factory | Repaired Rocket Array 18158 | -6/Factory | Repaired Cld. Aerolev Unit 18273 | -6/Factory | System corruption reached 10% 18301 | -6/Factory | Repaired Hrd. Medium Armor Plating 18747 | -6/Factory | Destroyed 8 combat bots 18818 | -6/Factory | Core integrity fell below 50% 19049 | -6/Factory | Discovered new exit (range 12) 19137 | -6/Factory | Sucked down chute 19137 | -6/Factory | Entered Waste 19152 | -6/Waste | EMP discharged 19164 | -6/Waste | Spotted C-40 Crusher 19189 | -6/Waste | Spotted C-40 Crusher 19222 | -6/Waste | Spotted C-40 Crusher 19244 | -6/Waste | Spotted C-40 Crusher 19252 | -6/Waste | EMP discharged 19256 | -6/Waste | Destroyed C-40 Crusher 19287 | -6/Waste | Spotted C-40 Crusher 19319 | -6/Waste | Destroyed C-40 Crusher 19327 | -6/Waste | Found Damper Plating 19333 | -6/Waste | Spotted C-40 Crusher 19352 | -6/Waste | EMP discharged 19452 | -6/Waste | EMP discharged 19552 | -6/Waste | EMP discharged 19652 | -6/Waste | EMP discharged 19655 | -6/Waste | Destroyed C-40 Crusher 19679 | -6/Waste | Discovered new exit (range 12) 19705 | -6/Waste | Destroyed C-40 Crusher 19729 | -6/Waste | Found Damper Plating 19752 | -6/Waste | EMP discharged 19768 | -6/Waste | Identified exit to Factory 19770 | -6/Waste | Entered Factory 19823 | -6/Factory | Identified exit to Garrison 19823 | -6/Factory | Entered Garrison 19842 | -6/Garrison | Expanded RIF knowledge: Alert ID Control 20078 | -6/Garrison | Triggered checkpoint 20176 | -6/Garrison | Discovered new exit (range 11) 20254 | -6/Garrison | Triggered checkpoint 20474 | -6/Garrison | Garrison Relay disabled 20594 | -6/Garrison | Identified exit to Factory 20598 | -6/Garrison | Entered Factory 20598 | -5/Factory | Evolved 2 slots: Utility x2 20986 | -5/Factory | Fabricated Cmb. Linear Gravjet (x2) 21095 | -5/Factory | Fabricated Launcher Loader? 21214 | -5/Factory | Garrison activated, responded to threat 21246 | -5/Factory | Discovered new exit (range 5) 21815 | -5/Factory | Repaired Coolant Injector 21854 | -5/Factory | Repaired Adv. Weight Redist. System 21929 | -5/Factory | Repaired Cmb. Linear Gravjet? 22614 | -5/Factory | Identified exit to Garrison 22614 | -5/Factory | Entered Garrison 22706 | -5/Garrison | Triggered checkpoint 22841 | -5/Garrison | Garrison Relay disabled 22936 | -5/Garrison | Spotted B-75 Beast 22967 | -5/Garrison | Triggered checkpoint 23035 | -5/Garrison | Triggered checkpoint 23206 | -5/Garrison | Destroyed B-75 Beast 23378 | -5/Garrison | Discovered new exit (range 10) 23492 | -5/Garrison | Triggered checkpoint 23599 | -5/Garrison | Discovered new exit (range 11) 23619 | -5/Garrison | Expanded RIF knowledge: Coupler Efficiency 23789 | -5/Garrison | Discovered new exit (range 8) 23885 | -5/Garrison | Triggered checkpoint 23936 | -5/Garrison | Garrison Relay disabled 24047 | -5/Garrison | Triggered checkpoint 24090 | -5/Garrison | Garrison Relay disabled 24355 | -5/Garrison | Entered Factory 24355 | -4/Factory | Evolved 2 slots: Propulsion x1, Utility x1 24402 | -4/Factory | Build established: Botlord-Mutant 24977 | -4/Factory | Discovered new exit (range 3) 25101 | -4/Factory | Build established: Bothacker-Mutant 25512 | -4/Factory | Lost 5 parts (1p1u3w) 25684 | -4/Factory | Found Quantum Capacitor 27479 | -4/Factory | System corruption reached 10% 27579 | -4/Factory | Found Prototype Processor 27579 | -4/Factory | Identified Exp. Melee Analysis Suite 27651 | -4/Factory | Lost 3 parts (1n1u1w) 27659 | -4/Factory | Destroyed 9 combat bots 27675 | -4/Factory | Discovered new exit (range 9) 27732 | -4/Factory | Core integrity fell below 50% 27978 | -4/Factory | Core integrity fell below 20% 28006 | -4/Factory | Destroyed by H-77 Assassin with Coil Gun Last Messages --------------- 27982_ Destroyed Hvy. Shock Bomb Launcher. 27982_ K-01 Serf destroyed. 27982_ Penetrated by Slug. 27982_ Slug penetrates Earth. 27983_ Slug penetrates Wall. 27985_ H-77 Assassin destroyed. 27986_ Penetrated by Slug. 27987_ Slug penetrates Wall. 27988_ System corrupted: Matter fused (-10). 27988_ H-77 Assassin system terminally corrupted. 27988_ Imp. Targeting Computer fried. 27988_ The unstable cave ceiling collapses. 27990_ Penetrated by Slug. 27993_ The unstable cave ceiling collapses. 27993_ Penetrated by Slug. 27994_ The unstable cave ceiling collapses. 27996_ Penetrated by Slug. 27996_ Imp. Target Analyzer destroyed. 27999_ The unstable cave ceiling collapses. 28003_ Penetrated by Slug. Map ----- +----------------------------------------------------+ | ????????????####| # #?# #???????????????? | | ????????????#* +! "" ###?# #???????????????? | | ????????????# ##! ""T"" #???# #???????????????? | | ?????????####+## #???# #???????????????? | | ?????????#= ! # #???# #???????????????? | | ?????????# % # """ """ #???# #???????????????? | | ?????????#""" # """ """ #???# #???????????????? | | ?????????#""" # """ """ #???# #???????????????? | | ?????????#""" #^ ^ #???# +???????????????? | | ?????????# # """ """ #???# #???????????????? | | ?????????#""" # """ """ #???# #???????????????? | | ????""???#""" !# """ """ #???# #???????????????? | | ??? ???#""" # #???# #???????????????? | | ??? ????# # ]#???# #???????????????? | | ?? ?????# # #???# #???????????????? | | ## ####??# # !#??## ##??????????????? | | # #??###+###+############ #??????????????? | | # ##### "" #??????????????? | | * o T +??????????????? | | ###### %= #??????????????? | | #??# #######/####### #??????????????? | | #??# #?????# #### ###??????????????? | | #?# *#???## [ h # # #????????????????? | | * #??# #???# =% # #????????????????? | | #??# #???#%[=w ## #????????????????? | | ! ##??# #???# =%= @ # # #????????????????? | | ####???# #???# !! | # # #????????????????? | | ########?### ####### # ?????????????????? | | ## #???# # ! ## ?????????????????? | | ##### # / ;] # #??????????????????? | | < + !# ! ] ##??????????????????? | | ##### # " " # !! ###???????????????????? | | ## #???# # "Y" !# ! +?????????????????????? | | ?#######???# # """ # #?????????????????????? | | ???????????# ########! !#?????????????????????? | | ???????????# #??????########?????????????????????? | | ???????????# #???????????????????????????????????? | | ???????????# #???????????????????????????????????? | | ???????????# #???????????????????????????????????? | | ???????????? ????????????????????????????????????? | | ???????????? ????????????????????????????????????? | | ???????????? ????????????????????????????????????? | | ???????????? ????????????????????????????????????? | | ???????????? ????????????????????????????????????? | | ????????????"????????????????????????????????????? | | ?????????????????????????????????????????????????? | | ?????????????????????????????????????????????????? | | ?????????????????????????????????????????????????? | | ?????????????????????????????????????????????????? | | ?????????????????????????????????????????????????? | +----------------------------------------------------+ Best States ------------- Heat Dissipation 54 Coolant Potential 65 Energy Generation 18 Energy Capacity 1370 Matter Stores 400 Matter Capacity 550 Sight Range 20 Robot Scan Range 16 Terrain Scan Density 10 Additional Mass Support 18 Armor Coverage 2400 Resistance: TH 15 Resistance: EM 90 Propulsion Shielding 66 Evasion (%) 44 Targeting Accuracy 8 Launcher Accuracy 20 Target Analysis 6 Armor Integrity Analysis 50 Recoil Reduction 3 Offensive Hacking 10 Item Schematics ----------------- Hcp. Storage Unit | -8/Materials | Hacked Launcher Loader | -6/Factory | Hacked Cmb. Linear Gravjet | -5/Factory | Scanalyzed Robot Schematics ------------------ None Fabricated ------------ Cmb. Linear Gravjet | x2 | -5/Factory | Preloaded Launcher Loader | x2 | -5/Factory Alien Tech Used ----------------- None Achievements -------------- None Challenges ------------ None Game ------ Seed GuidanceThunderFacilitator Manual? 0 Play Time 04:13:09 Cumulative 796.3 hours Start 2019.10.26 @ 23:39:55 End 2019.10.27 @ 04:45:25 Sessions 5 Manual Loads 0 Difficulty Rogue Special Mode None Game No. 297 Rogue 297 Adventurer 0 Explorer 0 Win Type - Total 20 Types 10/1/7/0/0/0/2 Lore% 95 Gallery% 94 Achievement% 79 Wizard Run 0 Options --------- ASCII 0 Keyboard 0 Movement Vi Keybinds 0 Fullscreen 0 Font 12/Crisp Map View 76x50 Tactical HUD 1 Map Filters NONE Filters NONE Steam 1 RUN: edcd3c66-babc-4f5a-bf61-19ba8d2c2396